bitfinex/quotes_BTCUSD_20250114
["timestamp","ask_amount","ask_price","bid_price","bid_amount"]
[1736859927054,0.00783299,96179.0,96178.0,0.31317392]
[1736859927610,0.00783299,96179.0,96178.0,0.31217392]
[1736859927812,0.00783299,96179.0,96178.0,0.31317392]
[1736859928022,0.00783299,96179.0,96178.0,0.31517392]
[1736859928219,0.00783299,96179.0,96178.0,0.31417392]
[1736859928405,0.00783299,96179.0,96178.0,0.31517392]
[1736859928805,0.00783299,96179.0,96178.0,0.31417392]
[1736859929009,0.00783299,96179.0,96178.0,0.31617392]
[1736859929410,0.00783299,96179.0,96178.0,0.31417392]
[1736859929625,0.00179299,96179.0,96178.0,0.31417392]
[1736859929827,0.00179299,96179.0,96178.0,0.31217392]
[1736859930243,0.00179299,96179.0,96178.0,0.31417392]
[1736859930884,0.00179299,96179.0,96178.0,0.31217392]
[1736859931089,0.0455,96178.0,96173.0,0.207958]
[1736859931918,0.0455,96178.0,96172.0,0.0008531]
[1736859932154,0.30059757,96173.0,96172.0,0.0008531]
[1736859932302,0.09263957,96173.0,96172.0,0.0008531]
[1736859932506,0.10187337,96173.0,96172.0,0.0008531]
[1736859933926,0.10487337,96173.0,96172.0,0.0008531]
[1736859934129,0.0920338,96173.0,96172.0,0.2088131]
[1736859934304,0.0092338,96173.0,96172.0,0.2088131]
[1736859934505,0.00612,96173.0,96172.0,0.2088131]
[1736859934733,0.00179299,96179.0,96172.0,0.2088131]
[1736859934734,0.00179299,96179.0,96178.0,0.207947]
[1736859934933,0.00179299,96179.0,96178.0,0.31217392]
[1736859934934,0.00791299,96179.0,96178.0,0.31217392]
[1736859937441,0.00791299,96179.0,96178.0,0.31317392]
[1736859937662,0.00791299,96179.0,96178.0,0.001]
[1736859937875,0.0455,96178.0,96173.0,0.207957]
[1736859938087,0.0455,96178.0,96172.0,0.0008531]
[1736859938088,0.01283957,96173.0,96172.0,0.0008531]
[1736859938464,0.01311845,96173.0,96172.0,0.0008531]
[1736859938673,0.01595802,96173.0,96172.0,0.0008531]
[1736859939610,0.01311845,96173.0,96172.0,0.0008531]
[1736859940446,0.00923845,96173.0,96172.0,0.0008531]
[1736859940559,0.00411845,96173.0,96172.0,0.10508002]
[1736859940764,0.00712,96173.0,96172.0,0.10508002]
[1736859941148,0.00612,96173.0,96172.0,0.10508002]
[1736859941541,0.00712,96173.0,96172.0,0.10508002]
[1736859943102,0.00612,96173.0,96172.0,0.10508002]
[1736859943305,0.00612,96173.0,96172.0,0.10611967]
[1736859943721,0.00179299,96179.0,96173.0,0.207958]
[1736859943928,0.00612,96175.0,96174.0,0.10526652]
[1736859944127,0.00179299,96179.0,96174.0,0.25526652]
[1736859944357,0.00179299,96179.0,96175.0,0.15]
[1736859944511,0.00179299,96179.0,96178.0,0.357947]
[1736859944728,0.00179299,96179.0,96178.0,0.46217392]
[1736859946466,0.00179299,96179.0,96178.0,0.55933435]
[1736859946679,0.00179299,96179.0,96178.0,0.56133435]
[1736859946880,0.00179299,96179.0,96178.0,0.56333435]
[1736859947556,0.00179299,96179.0,96178.0,0.6992321]
[1736859947705,0.00179299,96179.0,96178.0,0.7012321]
[1736859948263,0.00179299,96179.0,96178.0,0.71165301]
[1736859948470,9.9e-07,96179.0,96178.0,0.79405301]
[1736859948789,9.9e-07,96179.0,96178.0,0.80105301]
[1736859949022,9.9e-07,96179.0,96178.0,0.66115526]
[1736859949214,9.9e-07,96179.0,96178.0,0.65915526]
[1736859949601,9.9e-07,96179.0,96178.0,0.66115526]
[1736859950039,9.9e-07,96179.0,96178.0,0.57675526]
[1736859950471,9.9e-07,96179.0,96178.0,0.58075526]
[1736859950870,9.9e-07,96179.0,96178.0,0.56975526]
[1736859951144,0.00364894,96190.0,96189.0,0.207923]
[1736859951320,0.00364894,96190.0,96189.0,0.31214992]
[1736859952322,0.00379903,96190.0,96189.0,0.31214992]
[1736859953864,0.00379903,96190.0,96189.0,0.31514992]
[1736859954093,0.00627009,96190.0,96189.0,0.31814992]
[1736859954859,0.00015009,96190.0,96189.0,0.31514992]
[1736859955193,0.00015009,96190.0,96189.0,0.31814992]
[1736859955398,0.00015009,96190.0,96189.0,0.32572593]
[1736859955699,0.00015009,96190.0,96189.0,0.41909292]
[1736859955880,0.00015009,96190.0,96189.0,0.42209292]
[1736859956282,0.00015009,96190.0,96189.0,0.32572593]
[1736859956724,0.00015009,96190.0,96189.0,0.32872593]
[1736859957127,0.00015009,96190.0,96189.0,0.32572593]
[1736859957342,0.00015009,96190.0,96189.0,0.32272593]
[1736859957529,0.00015009,96190.0,96189.0,0.32472593]
[1736859958048,0.00015009,96190.0,96189.0,0.32772593]
[1736859958369,0.00015009,96190.0,96189.0,0.32472593]
[1736859958790,0.00015009,96190.0,96189.0,0.32672593]
[1736859959271,0.00015009,96190.0,96189.0,0.32872593]
[1736859959410,0.00015009,96190.0,96189.0,0.32532593]
[1736859959659,0.00015009,96190.0,96189.0,0.32332593]
[1736859959936,0.00015009,96190.0,96189.0,0.41969292]
[1736859960297,0.00015009,96190.0,96189.0,0.40911691]
[1736859960530,0.00100319,96190.0,96189.0,0.40611691]
[1736859960995,0.00712319,96190.0,96189.0,0.40911691]
[1736859961221,0.00100319,96190.0,96189.0,0.48861691]
[1736859961424,0.00712319,96190.0,96189.0,0.39924992]
[1736859961842,0.00712319,96190.0,96189.0,0.39524992]
[1736859962045,0.00712319,96190.0,96189.0,0.39724992]
[1736859962266,0.00712319,96190.0,96189.0,0.39424992]
[1736859962723,0.00712319,96190.0,96189.0,0.39624992]
[1736859962931,0.00712319,96190.0,96189.0,0.39224992]
[1736859963111,0.00712319,96190.0,96189.0,0.48561691]
[1736859963315,0.00712319,96190.0,96189.0,0.49361691]
[1736859964641,0.00712319,96190.0,96189.0,0.48561691]
[1736859965019,0.00712319,96190.0,96189.0,0.49061691]
[1736859965204,0.00712319,96190.0,96189.0,0.39724992]
[1736859965810,0.00100319,96190.0,96189.0,0.54724992]
[1736859966228,0.00100319,96190.0,96189.0,0.47074992]
[1736859966656,0.00100319,96190.0,96189.0,0.32074992]
[1736859966870,0.00100319,96190.0,96189.0,0.4608004]
[1736859967076,0.00100319,96190.0,96189.0,0.4578004]
[1736859967286,0.00100319,96190.0,96189.0,0.4608004]
[1736859967671,0.00100319,96190.0,96189.0,0.31574992]
[1736859967876,0.00100319,96190.0,96189.0,0.31274992]
[1736859968940,0.00100319,96190.0,96189.0,0.31474992]
[1736859969114,0.00100319,96190.0,96189.0,0.39224992]
[1736859969626,0.00100319,96190.0,96189.0,0.39624992]
[1736859969830,0.00100319,96190.0,96189.0,0.31674992]
[1736859970082,0.00100319,96190.0,96189.0,0.31474992]
[1736859970255,0.00100319,96190.0,96189.0,0.31674992]
[1736859970639,0.00100319,96190.0,96189.0,0.31474992]
[1736859970840,0.00100319,96190.0,96189.0,0.31274992]
[1736859971040,0.00100319,96190.0,96189.0,0.31674992]
[1736859971268,0.00100319,96190.0,96189.0,0.31474992]
[1736859971648,0.00100319,96190.0,96189.0,0.31674992]
[1736859972197,0.00100319,96190.0,96189.0,0.31854101]
[1736859972592,0.00100319,96190.0,96189.0,0.31654101]
[1736859972737,0.00100319,96190.0,96189.0,0.31854101]
[1736859973137,0.00100319,96190.0,96189.0,0.11061801]
[1736859973138,0.00612,96190.0,96189.0,0.11061801]
[1736859973582,0.00612,96190.0,96189.0,0.00639109]
[1736859974563,0.02912,96190.0,96189.0,0.00639109]
[1736859974808,0.02912,96190.0,96189.0,0.00439109]
[1736859975866,0.02912,96190.0,96189.0,0.00239109]
[1736859976280,0.10892,96190.0,96189.0,0.00239109]
[1736859976480,0.11229803,96190.0,96189.0,0.00239109]
[1736859980464,0.16189803,96190.0,96189.0,0.00239109]
[1736859981166,0.17221862,96190.0,96189.0,0.00239109]
[1736859981390,0.17321862,96190.0,96189.0,0.00239109]
[1736859981742,0.17321862,96190.0,96189.0,0.00339109]
[1736859982898,0.17221862,96190.0,96189.0,0.00339109]
[1736859983103,0.17521862,96190.0,96189.0,0.00339109]
[1736859984335,0.16909862,96190.0,96189.0,0.00339109]
[1736859984502,0.17521862,96190.0,96189.0,0.00339109]
[1736859985252,0.15865291,96190.0,96189.0,0.00339109]
[1736859985431,0.16477291,96190.0,96189.0,0.00339109]
[1736859985831,0.15865291,96190.0,96189.0,0.00339109]
[1736859986033,0.03537291,96190.0,96189.0,0.00339109]
[1736859986211,0.03199488,96190.0,96189.0,0.00339109]
[1736859986413,0.00912,96190.0,96189.0,0.00339109]
[1736859986599,0.00912,96190.0,96189.0,0.00239109]
[1736859986813,0.00612,96190.0,96189.0,0.00239109]
[1736859987018,0.00712,96190.0,96189.0,0.00339109]
[1736859987256,0.00612,96190.0,96189.0,0.00239109]
[1736859987665,0.00712,96190.0,96189.0,0.00239109]
[1736859987871,0.00612,96190.0,96189.0,0.00239109]
[1736859988078,0.00712,96190.0,96189.0,0.00239109]
[1736859988450,0.00612,96190.0,96189.0,0.00239109]
[1736859988656,0.00912,96190.0,96189.0,0.00239109]
[1736859990247,0.00612,96190.0,96189.0,0.00239109]
[1736859990386,0.00812,96190.0,96189.0,0.00239109]
[1736859990574,0.00912,96190.0,96189.0,0.00239109]
[1736859990776,0.00712,96190.0,96189.0,0.00239109]
[1736859990986,0.00612,96190.0,96189.0,0.00239109]
[1736859991190,0.00912,96190.0,96189.0,0.00239109]
[1736859991627,0.00812,96190.0,96189.0,0.00239109]
[1736859991834,0.00712,96190.0,96189.0,0.00239109]
[1736859992037,0.00812,96190.0,96189.0,0.00239109]
[1736859992196,0.00712,96190.0,96189.0,0.00239109]
[1736859992405,0.00716,96190.0,96189.0,0.00239109]
[1736859992605,0.00816,96190.0,96189.0,0.00239109]
[1736859993208,0.03116,96190.0,96189.0,0.00239109]
[1736859993640,0.03348381,96190.0,96189.0,0.00239109]
[1736859993842,0.03248381,96190.0,96189.0,0.00239109]
[1736859994000,0.00716,96190.0,96189.0,0.00239109]
[1736859994205,0.00716,96190.0,96189.0,0.21031409]
[1736859994409,0.00616,96190.0,96189.0,0.21031409]
[1736859994836,0.00716,96190.0,96189.0,0.21031409]
[1736859995704,0.00616,96190.0,96189.0,0.21031409]
[1736859996993,0.00716,96190.0,96189.0,0.21031409]
[1736859997199,0.00616,96190.0,96189.0,0.21031409]
[1736859997986,0.00616,96190.0,96189.0,0.00239109]
[1736859998337,0.00949394,96190.0,96189.0,0.00239109]
[1736859998658,0.16089394,96190.0,96189.0,0.00239109]
[1736859999990,0.16189394,96190.0,96189.0,0.00239109]
[1736860000401,0.16089394,96190.0,96189.0,0.00239109]
[1736860000608,0.16189394,96190.0,96189.0,0.00339109]
[1736860000809,0.26912086,96190.0,96189.0,0.00339109]
[1736860001459,0.29686268,96190.0,96189.0,0.00339109]
[1736860001786,0.29986268,96190.0,96189.0,0.00339109]
[1736860001918,0.29886268,96190.0,96189.0,0.00239109]
[1736860005793,0.29986268,96190.0,96189.0,0.00339109]
[1736860005953,0.10511012,96190.0,96189.0,0.00339109]
[1736860006154,0.03649394,96190.0,96189.0,0.00339109]
[1736860006355,0.03033394,96190.0,96189.0,0.00339109]
[1736860006562,0.01349394,96190.0,96189.0,0.00339109]
[1736860006992,0.00949394,96190.0,96189.0,0.00239109]
[1736860007190,0.01049394,96190.0,96189.0,0.00339109]
[1736860007405,0.00916,96190.0,96189.0,0.00339109]
[1736860007624,0.00916,96190.0,96189.0,0.00239109]
[1736860008018,0.00716,96190.0,96189.0,0.00239109]
[1736860008222,0.0090129,96190.0,96189.0,0.00239109]
[1736860008661,0.0079877,96190.0,96189.0,0.00239109]
[1736860010050,0.00733314,96190.0,96189.0,0.00239109]
[1736860010275,0.03033314,96190.0,96189.0,0.00239109]
[1736860011110,0.03366511,96190.0,96189.0,0.00239109]
[1736860011643,0.03033314,96190.0,96189.0,0.00239109]
[1736860014480,0.0320129,96190.0,96189.0,0.00239109]
[1736860014661,0.0320129,96190.0,96189.0,0.0004654]
[1736860015945,0.0028529,96190.0,96189.0,0.0767654]
[1736860016170,0.0028529,96190.0,96189.0,0.18099232]
[1736860016171,0.0090129,96190.0,96189.0,0.18099232]
[1736860017188,0.0070129,96190.0,96189.0,0.18099232]
[1736860017399,0.0080129,96190.0,96189.0,0.18099232]
[1736860018383,0.0070129,96190.0,96189.0,0.18099232]
[1736860018585,0.0008529,96190.0,96189.0,0.18099232]
[1736860018959,0.0008529,96190.0,96189.0,0.18303179]
[1736860019185,0.0008529,96190.0,96189.0,0.18403179]
[1736860019365,0.0008529,96190.0,96189.0,0.34363729]
[1736860019571,0.0008529,96190.0,96189.0,0.34259782]
[1736860019779,0.0008529,96190.0,96189.0,0.34359782]
[1736860020397,0.0008529,96190.0,96189.0,0.34259782]
[1736860020630,0.0008529,96190.0,96189.0,0.57802312]
[1736860020991,0.0008529,96190.0,96189.0,0.42802312]
[1736860021184,0.0008529,96190.0,96189.0,0.42702312]
[1736860021585,0.0018529,96190.0,96189.0,0.42702312]
[1736860021814,0.0018529,96190.0,96189.0,0.48174369]
[1736860022196,0.0008529,96190.0,96189.0,0.48474369]
[1736860022388,0.0008529,96190.0,96189.0,0.34859782]
[1736860022507,0.0008529,96190.0,96189.0,0.34159782]
[1736860022705,0.0008529,96190.0,96189.0,0.34339782]
[1736860022922,0.0008529,96190.0,96189.0,0.34639782]
[1736860023124,0.0008529,96190.0,96189.0,0.34339782]
[1736860023342,9e-07,96190.0,96189.0,0.34139782]
[1736860023563,9e-07,96190.0,96189.0,0.34439782]
[1736860024082,9e-07,96190.0,96189.0,0.67784056]
[1736860024583,9e-07,96190.0,96189.0,0.68484056]
[1736860024764,9e-07,96190.0,96189.0,0.73424056]
[1736860024962,9e-07,96190.0,96189.0,0.49079782]
[1736860025164,9e-07,96190.0,96189.0,0.49579782]
[1736860025344,9e-07,96190.0,96189.0,0.49879782]
[1736860025564,9e-07,96190.0,96189.0,0.49379782]
[1736860025959,9e-07,96190.0,96189.0,0.49579782]
[1736860026417,9e-07,96190.0,96189.0,0.50379782]
[1736860026588,9e-07,96190.0,96189.0,0.49879782]
[1736860027109,9e-07,96190.0,96189.0,0.50379782]
[1736860027537,9e-07,96190.0,96189.0,0.60379782]
[1736860028294,9e-07,96190.0,96189.0,0.59879782]
[1736860028499,9e-07,96190.0,96189.0,0.60379782]
[1736860031694,9e-07,96190.0,96189.0,0.50379782]
[1736860032474,9e-07,96190.0,96189.0,0.35439782]
[1736860032836,9e-07,96190.0,96189.0,0.12809782]
[1736860033619,9e-07,96190.0,96189.0,0.11749232]
[1736860033992,9e-07,96190.0,96189.0,0.10449232]
[1736860034253,9e-07,96190.0,96189.0,0.10749232]
[1736860034655,9e-07,96190.0,96189.0,0.10449232]
[1736860034857,0.0010009,96190.0,96189.0,0.10449232]
[1736860035816,0.0010009,96190.0,96189.0,0.10649232]
[1736860036995,0.0010009,96190.0,96189.0,0.0002654]
[1736860037203,9e-07,96190.0,96189.0,0.0002654]
[1736860037424,9e-07,96190.0,96189.0,0.0012654]
[1736860037425,0.0033722,96190.0,96189.0,0.0012654]
[1736860037636,9e-07,96190.0,96189.0,0.0012654]
[1736860037914,9e-07,96190.0,96189.0,0.0002654]
[1736860038117,0.00437427,96190.0,96189.0,0.0002654]
[1736860041304,0.02737427,96190.0,96189.0,0.0002654]
[1736860043826,0.00437427,96190.0,96189.0,0.10553189]
[1736860044044,0.00437427,96190.0,96189.0,0.17949232]
[1736860044249,9e-07,96190.0,96189.0,0.49049797]
[1736860044394,9e-07,96190.0,96189.0,0.48945852]
[1736860044824,0.00616,96203.0,96202.0,0.357895]
[1736860045018,0.00616,96203.0,96202.0,0.46212192]
[1736860045718,0.0497,96236.0,96208.0,0.207882]
[1736860045719,0.00616,96211.0,96208.0,0.207882]
[1736860045955,0.00616,96211.0,96208.0,0.31210892]
[1736860046870,0.00090271,96209.0,96208.0,0.31210892]
[1736860047509,0.00090271,96209.0,96208.0,0.31410892]
[1736860047706,0.00090271,96209.0,96208.0,0.31210892]
[1736860048216,0.00090271,96209.0,96208.0,0.32740044]
[1736860048634,0.00090271,96209.0,96208.0,0.33040044]
[1736860053286,0.00090271,96209.0,96208.0,0.32792044]
[1736860063183,0.00090271,96209.0,96208.0,0.421139]
[1736860064915,0.00090271,96209.0,96208.0,0.30662056]
[1736860065131,0.00090271,96209.0,96208.0,0.008]
[1736860065312,0.00090271,96209.0,96208.0,0.003]
[1736860066119,0.07369531,96209.0,96208.0,0.003]
[1736860066335,0.023,96208.0,96198.0,0.207903]
[1736860066692,0.023,96208.0,96199.0,0.10422692]
[1736860066894,0.0033915,96207.0,96200.0,0.2079]
[1736860067067,0.023,96206.0,96200.0,0.2079]
[1736860067280,0.04730271,96209.0,96203.0,0.207891]
[1736860067281,0.023,96208.0,96203.0,0.207891]
[1736860067755,0.024,96208.0,96203.0,0.207891]
[1736860067954,0.023,96208.0,96203.0,0.207891]
[1736860068366,0.001,96206.0,96203.0,0.207891]
[1736860069106,0.001,96206.0,96204.0,0.20789]
[1736860070359,0.023,96208.0,96204.0,0.20789]
[1736860070561,0.001,96206.0,96204.0,0.20789]
[1736860070998,0.023,96208.0,96204.0,0.20789]
[1736860071383,0.001,96206.0,96201.0,0.207897]
[1736860072099,0.001,96206.0,96203.0,0.207892]
[1736860073714,0.0062,96205.0,96204.0,0.10422692]
[1736860075474,0.0072,96205.0,96204.0,0.10422692]
[1736860077284,0.001,96205.0,96204.0,0.10422692]
[1736860077485,0.0072,96205.0,96204.0,0.10422692]
[1736860078894,0.0072,96205.0,96204.0,0.10526628]
[1736860079094,0.0072,96205.0,96204.0,0.10705821]
[1736860079722,0.001,96205.0,96204.0,0.10705821]
[1736860079947,0.001,96205.0,96204.0,0.33675821]
[1736860080193,0.001,96205.0,96204.0,0.33571885]
[1736860080706,0.001,96205.0,96204.0,0.33671885]
[1736860081199,0.001,96205.0,96204.0,0.33571885]
[1736860081454,0.001,96205.0,96204.0,0.52215597]
[1736860081662,0.001,96205.0,96204.0,0.52615597]
[1736860082154,0.00090271,96209.0,96204.0,0.52615597]
[1736860082155,0.00090271,96209.0,96205.0,0.565778]
[1736860082392,0.00090271,96209.0,96206.0,0.10526608]
[1736860082629,0.00090271,96209.0,96207.0,0.207885]
[1736860082886,0.00090271,96209.0,96208.0,0.10526608]
[1736860084820,0.00090271,96209.0,96208.0,0.10826608]
[1736860085265,0.00090271,96209.0,96208.0,0.11326608]
[1736860085471,0.00179025,96226.0,96225.0,0.207846]
[1736860085677,0.00841042,96226.0,96225.0,0.207846]
[1736860086102,0.00813503,96226.0,96225.0,0.207846]
[1736860088992,0.00913503,96226.0,96225.0,0.207846]
[1736860089632,0.00301503,96226.0,96225.0,0.31207292]
[1736860089828,0.00913503,96226.0,96225.0,0.31207292]
[1736860090026,0.00904307,96226.0,96225.0,0.31207292]
[1736860091440,0.00904307,96226.0,96225.0,0.39167292]
[1736860091616,0.00292307,96226.0,96225.0,0.31207292]
[1736860091815,0.00904307,96226.0,96225.0,0.31207292]
[1736860092767,0.00804307,96226.0,96225.0,0.31207292]
[1736860093483,0.00804307,96226.0,96225.0,0.31307292]
[1736860094215,0.00804307,96226.0,96225.0,0.31207292]
[1736860094544,0.00804307,96226.0,96225.0,0.31307292]
[1736860094958,0.00192307,96226.0,96225.0,0.31207292]
[1736860095161,0.00804307,96226.0,96225.0,0.40544216]
[1736860095391,0.00804307,96226.0,96225.0,0.40644216]
[1736860096062,0.00804307,96226.0,96225.0,0.31307292]
[1736860096304,0.00804307,96226.0,96225.0,0.31507292]
[1736860097130,0.00192307,96226.0,96225.0,0.31507292]
[1736860097358,0.00804307,96226.0,96225.0,0.31507292]
[1736860099226,0.00804307,96226.0,96225.0,0.31407292]
[1736860099369,0.00804307,96226.0,96225.0,0.31207292]
[1736860099768,0.00804307,96226.0,96225.0,0.31307292]
[1736860100179,0.03104307,96226.0,96225.0,0.208846]
[1736860100626,0.03104307,96226.0,96225.0,0.001]
[1736860101043,0.11498535,96226.0,96225.0,0.001]
[1736860103006,0.11498535,96226.0,96225.0,0.00279172]
[1736860103963,0.16108535,96226.0,96225.0,0.00279172]
[1736860104389,0.26531227,96226.0,96225.0,0.00279172]
[1736860104585,0.47315627,96226.0,96225.0,0.00179172]
[1736860104786,0.47315627,96226.0,96225.0,0.00279172]
[1736860105411,0.47315627,96226.0,96225.0,0.00179172]
[1736860105604,0.49145609,96226.0,96225.0,0.00179172]
[1736860105811,0.49245609,96226.0,96225.0,0.00179172]
[1736860106202,0.28361209,96226.0,96225.0,0.00179172]
[1736860106432,0.28361209,96226.0,96225.0,0.00279172]
[1736860106433,0.18038517,96226.0,96225.0,0.00279172]
[1736860108241,0.03798535,96226.0,96225.0,0.21063772]
[1736860108619,0.03598535,96226.0,96225.0,0.21063772]
[1736860108864,0.03498535,96226.0,96225.0,0.20963772]
[1736860109042,0.03404307,96226.0,96225.0,0.00279172]
[1736860109245,0.03404307,96226.0,96225.0,0.00179172]
[1736860109490,0.03204307,96226.0,96225.0,0.00179172]
[1736860109740,0.03304307,96226.0,96225.0,0.00179172]
[1736860109945,0.03695616,96226.0,96225.0,0.00179172]
[1736860110337,0.03304307,96226.0,96225.0,0.00179172]
[1736860110887,0.03104307,96226.0,96225.0,0.00179172]
[1736860111203,0.03204307,96226.0,96225.0,0.00179172]
[1736860111969,0.0359545,96226.0,96225.0,0.00179172]
[1736860112350,0.0369545,96226.0,96225.0,0.00179172]
[1736860112556,0.0298345,96226.0,96225.0,0.20963772]
[1736860112853,0.03300307,96226.0,96225.0,0.20963772]
[1736860113439,0.03200307,96226.0,96225.0,0.20963772]
[1736860113644,0.00292307,96226.0,96225.0,0.39206464]
[1736860113845,0.00192307,96226.0,96225.0,0.39206464]
[1736860114264,0.00292307,96226.0,96225.0,0.39206464]
[1736860114467,0.00192307,96226.0,96225.0,0.39206464]
[1736860114669,0.00192307,96226.0,96225.0,0.40224676]
[1736860114877,0.00292307,96226.0,96225.0,0.40224676]
[1736860115297,0.00192307,96226.0,96225.0,0.40224676]
[1736860115696,0.00192307,96226.0,96225.0,0.40324676]
[1736860116144,0.00192307,96226.0,96225.0,0.40224676]
[1736860116590,0.00192307,96226.0,96225.0,0.40324676]
[1736860117942,0.00192307,96226.0,96225.0,0.40224676]
[1736860118146,0.00800307,96226.0,96225.0,0.40724676]
[1736860118730,0.00800307,96226.0,96225.0,0.40624676]
[1736860119017,0.00800307,96226.0,96225.0,0.40924676]
[1736860120873,0.00800307,96226.0,96225.0,0.39906464]
[1736860121081,0.00800307,96226.0,96225.0,0.32086464]
[1736860121945,0.00800307,96226.0,96225.0,0.21263772]
[1736860122147,0.00800307,96226.0,96225.0,0.20963772]
[1736860122343,0.00800307,96226.0,96225.0,0.21063772]
[1736860123209,0.00800307,96226.0,96225.0,0.31486464]
[1736860124052,0.00800307,96226.0,96225.0,0.31386464]
[1736860124333,0.00800307,96226.0,96225.0,0.31486464]
[1736860124530,0.00800307,96226.0,96225.0,0.31686464]
[1736860124732,0.00800307,96226.0,96225.0,0.31386464]
[1736860125168,0.00192307,96226.0,96225.0,0.31886464]
[1736860125333,0.00800307,96226.0,96225.0,0.31886464]
[1736860125943,0.00800307,96226.0,96225.0,0.31686464]
[1736860127299,0.00800307,96226.0,96225.0,0.31786464]
[1736860128460,0.00800307,96226.0,96225.0,0.31486464]
[1736860128656,0.00800307,96226.0,96225.0,0.31386464]
[1736860128977,0.00800307,96226.0,96225.0,0.31486464]
[1736860130769,0.00800307,96226.0,96225.0,0.31586464]
[1736860131304,0.00800307,96226.0,96225.0,0.21163772]
[1736860131503,0.03100307,96226.0,96225.0,0.00279172]
[1736860131889,0.0342187,96226.0,96225.0,0.00279172]
[1736860132783,0.0342187,96226.0,96225.0,0.00179172]
[1736860133509,0.0352187,96226.0,96225.0,0.00179172]
[1736860133686,0.0342187,96226.0,96225.0,0.00179172]
[1736860134121,0.0352187,96226.0,96225.0,0.00179172]
[1736860134292,0.0352187,96226.0,96225.0,0.00279172]
[1736860134527,0.0291387,96226.0,96225.0,0.00279172]
[1736860134719,0.0291387,96226.0,96207.0,0.09338287]
[1736860134720,0.0291387,96226.0,96205.0,0.10318817]
[1736860134721,0.1,96213.0,96205.0,0.10318817]
[1736860134896,0.932387,96206.0,96205.0,0.10318817]
[1736860135256,0.932387,96206.0,96159.0,0.207987]
[1736860135257,0.307919,96191.0,96159.0,0.207987]
[1736860135472,0.49612592,96191.0,96163.0,0.207978]
[1736860135683,0.52230426,96191.0,96189.0,0.0002654]
[1736860136310,0.5326672,96191.0,96189.0,0.0002654]
[1736860136730,0.5326672,96191.0,96190.0,0.00184236]
[1736860137290,0.52230426,96191.0,96190.0,0.00184236]
[1736860137507,0.52630426,96191.0,96190.0,0.00284236]
[1736860137845,0.52530426,96191.0,96190.0,0.00184236]
[1736860138049,0.52530426,96191.0,96190.0,0.00284236]
[1736860138050,0.52930426,96191.0,96190.0,0.00284236]
[1736860138258,0.52630426,96191.0,96190.0,0.00284236]
[1736860138664,0.85650426,96191.0,96190.0,0.00284236]
[1736860139078,0.85150426,96191.0,96190.0,0.00284236]
[1736860139412,0.85650426,96191.0,96190.0,0.00284236]
[1736860140026,0.85250426,96191.0,96190.0,0.00184236]
[1736860140224,0.85650426,96191.0,96190.0,0.00284236]
[1736860140717,0.85250426,96191.0,96190.0,0.00184236]
[1736860140924,0.85650426,96191.0,96190.0,0.00284236]
[1736860142187,1.00650426,96191.0,96190.0,0.00284236]
[1736860143214,1.00250426,96191.0,96190.0,0.00184236]
[1736860143618,0.99750426,96191.0,96190.0,0.00184236]
[1736860143888,0.1,96182.0,96171.0,0.0009822]
[1736860144122,0.411754,96175.0,96174.0,0.0019416]
[1736860144309,0.51913288,96175.0,96174.0,0.0019416]
[1736860144939,0.52517288,96175.0,96174.0,0.0019416]
[1736860146590,0.52517288,96175.0,96174.0,0.0029416]
[1736860146820,0.52517288,96175.0,96174.0,0.0019416]
[1736860147108,0.52817288,96175.0,96174.0,0.0019416]
[1736860147733,0.55348107,96175.0,96174.0,0.0029416]
[1736860148145,1.29897816,96175.0,96174.0,0.0029416]
[1736860148343,1.33120741,96175.0,96174.0,0.0029416]
[1736860148773,1.31489922,96175.0,96174.0,0.00043391]
[1736860149095,1.31489922,96175.0,96129.0,0.0008535]
[1736860149096,0.416091,96133.0,96129.0,0.0008535]
[1736860149226,0.023,96130.0,96129.0,0.0008535]
[1736860149429,0.023,96128.0,96108.0,0.0804]
[1736860149665,0.023,96128.0,96116.0,0.20808]
[1736860149874,0.023,96126.0,96116.0,0.20808]
[1736860150076,0.023,96126.0,96119.0,0.208073]
[1736860150228,0.023,96124.0,96120.0,0.208071]
[1736860150434,0.023,96124.0,96117.0,0.208079]
[1736860150630,0.023,96122.0,96117.0,0.208079]
[1736860151049,0.00308823,96126.0,96121.0,0.208069]
[1736860151269,0.023,96125.0,96121.0,0.208069]
[1736860151663,0.023,96123.0,96121.0,0.208069]
[1736860153712,8.823e-05,96126.0,96121.0,0.208069]
[1736860153986,0.002,96123.0,96121.0,0.208069]
[1736860154724,8.823e-05,96126.0,96121.0,0.208069]
[1736860155141,0.00308318,96125.0,96121.0,0.208069]
[1736860155565,0.002,96123.0,96121.0,0.208069]
[1736860155919,0.023,96117.0,96110.0,0.0009924]
[1736860156127,0.002,96123.0,96110.0,0.0009924]
[1736860156128,0.231068,96122.0,96110.0,0.0009924]
[1736860156334,0.00307593,96116.0,96110.0,0.0009924]
[1736860156539,0.023,96122.0,96110.0,0.0009924]
[1736860156870,0.023,96120.0,96108.0,0.0804]
[1736860157059,0.023,96120.0,96109.0,0.208097]
[1736860157256,0.14770441,96120.0,96109.0,0.208097]
[1736860157526,0.00307709,96119.0,96109.0,0.208097]
[1736860157724,0.001,96116.0,96109.0,0.208097]
[1736860158115,0.023,96114.0,96109.0,0.208097]
[1736860158490,0.023,96119.0,96109.0,0.208097]
[1736860158700,0.023,96112.0,96109.0,0.208097]
[1736860159031,0.023,96119.0,96109.0,0.208097]
[1736860159269,0.023,96110.0,96109.0,0.208097]
[1736860159945,0.023,96119.0,96109.0,0.208097]
[1736860160330,0.023,96115.0,96109.0,0.208097]
[1736860160734,0.023,96118.0,96109.0,0.208097]
[1736860160936,0.026,96110.0,96109.0,0.208097]
[1736860161116,0.023,96110.0,96109.0,0.208097]
[1736860163438,0.02904,96110.0,96109.0,0.208097]
[1736860163613,0.02904,96110.0,96109.0,0.20988914]
[1736860163843,0.03204,96110.0,96109.0,0.20988914]
[1736860164207,0.03304,96110.0,96109.0,0.20988914]
[1736860164400,0.03304,96110.0,96109.0,0.21088914]
[1736860164942,0.03304,96110.0,96109.0,0.00279214]
[1736860174356,0.03610599,96110.0,96109.0,0.00279214]
[1736860175722,0.24419999,96110.0,96109.0,0.00279214]
[1736860175878,0.03610599,96110.0,96109.0,0.00279214]
[1736860176080,0.03610599,96110.0,96109.0,0.00523214]
[1736860181492,0.89548655,96110.0,96109.0,0.00523214]
[1736860181695,1.01678493,96110.0,96109.0,0.00523214]
[1736860181928,0.4271,96108.0,96107.0,0.00179235]
[1736860182131,0.55432692,96108.0,96107.0,0.00179235]
[1736860182277,0.557339,96108.0,96107.0,0.00179235]
[1736860182865,0.882539,96108.0,96107.0,0.00179235]
[1736860183095,0.604816,96100.0,96099.0,0.000853]